[Event "Sheikh Russel GM 2021"]
[Site "Dhaka"]
[Date "2021.10.21"]
[Round "3.19"]
[White "Sadikhov, Ulvi"]
[Black "Mohammad Minhaz Uddin"]
[Result "0-1"]
[ECO "A28"]
[WhiteElo "2517"]
[BlackElo "2264"]
[Annotator "ChessBase"]
[PlyCount "70"]
[EventDate "2021.10.19"]
[EventType "swiss"]
[EventCountry "BAN"]
[SourceTitle "playchess.com"]
[Source "ChessBase"]
[SourceQuality "1"]
[TimeControl "40/5400+30:1800+30"]

1. c4 {[%emt 0:00:02]} e5 {[%emt 0:00:03]} 2. Nc3 {[%emt 0:00:12]} Nf6 {[%emt 0:00:04]} 3. Nf3 {[%emt 0:00:16]} Nc6 {[%emt 0:00:11]} 4. e3 {[%emt 0:01:35]} Be7 {[%emt 0:01:53]} 5. Be2 {[%emt 0:01:23]} O-O {[%emt 0:00:04]} 6. O-O {[%emt 0:00:51]} d5 {[%emt 0:05:17]} 7. cxd5 {[%emt 0:00:47]} Nxd5 {[%emt 0:00:03]} 8. d3 {[%emt 0:00:06]} Be6 {[%emt 0:01:11]} 9. a3 {[%emt 0:00:06]} Kh8 {[%emt 0:00:27]} 10. Qc2 {[%emt 0:00:35]} f5 {[%emt 0:00:09]} 11. Na4 {[%emt 0:00:25]} Bd6 {[%emt 0:04:07]} 12. Nc5 {[%emt 0:05:19]} Bc8 {[%emt 0:00:29]} 13. b4 {[%emt 0:02:00]} Qe7 {[%emt 0:02:36]} 14. Nb3 {[%emt 0:18:23]} a5 {[%emt 0:06:38]} 15. b5 {[%emt 0:05:27]} Nb8 {[%emt 0:11:39]} 16. Bb2 {[%emt 0:13:47]} b6 {[%emt 0:06:13]} 17. d4 {[%emt 0:02:10]} e4 {[%emt 0:00:11]} 18. Ne5 {[%emt 0:00:09]} Bb7 {[%emt 0:02:51]} 19. Nd2 {[%emt 0:01:48]} Nd7 {[%emt 0:03:17]} 20. Ndc4 {[%emt 0:00:14]} Nxe5 {[%emt 0:05:21]} 21. dxe5 {[%emt 0:10:44]} Bc5 {[%emt 0:00:46]} 22. Nd2 {[%emt 0:08:39]} Qg5 {[%emt 0:06:04]} 23. Nc4 {[%emt 0:16:50]} f4 {[%emt 0:13:19]} 24. Qxe4 {[%emt 0:00:04]} fxe3 {[%emt 0:00:16]} 25. Bd3 {[%emt 0:00:54]} exf2+ {[%emt 0:01:02]} 26. Kh1 {[%emt 0:00:06]} Qh5 {[%emt 0:05:26]} 27. Be2 {[%emt 0:03:52]} Nf4 {[%emt 0:04:52]} 28. Bxh5 {[%emt 0:00:55]} Bxe4 {[%emt 0:00:03]} 29. Bf3 {[%emt 0:00:06]} Bxf3 {[%emt 0:06:15]} 30. gxf3 {[%emt 0:00:03]} Nd3 {[%emt 0:02:44]} 31. Bc3 {[%emt 0:00:04]} Rxf3 {[%emt 0:00:26]} 32. Rad1 {[%emt 0:00:05]} Nf4 {[%emt 0:01:19]} 33. Bb2 {[%emt 0:00:25]} Ne6 {[%emt 0:05:19]} 34. Rd7 {[%emt 0:00:20]} Rf4 {[%emt 0:00:50]} 35. Nd2 {[%emt 0:00:15]} Rg4 {[%emt 0:00:07]} 0-1

[Event "Sheikh Russel GM 2021"]
[Site "Dhaka"]
[Date "2021.10.21"]
[Round "3.20"]
[White "Abu Sufian, Shakil"]
[Black "Pranav Vijay"]
[Result "0-1"]
[ECO "C78"]
[WhiteElo "2247"]
[BlackElo "2265"]
[Annotator "ChessBase"]
[PlyCount "80"]
[EventDate "2021.10.19"]
[EventType "swiss"]
[EventCountry "BAN"]
[SourceTitle "playchess.com"]
[Source "ChessBase"]
[SourceQuality "1"]
[TimeControl "40/5400+30:1800+30"]

1. e4 {[%emt 0:00:03]} e5 {[%emt 0:00:08]} 2. Nf3 {[%emt 0:00:08]} Nc6 {[%emt 0:00:08]} 3. Bb5 {[%emt 0:00:10]} a6 {[%emt 0:00:08]} 4. Ba4 {[%emt 0:00:06]} Nf6 {[%emt 0:00:16]} 5. O-O {[%emt 0:00:15]} b5 {[%emt 0:00:10]} 6. Bb3 {[%emt 0:00:01]} Bc5 {[%emt 0:00:17]} 7. a4 {[%emt 0:00:31]} Rb8 {[%emt 0:00:16]} 8. c3 {[%emt 0:00:08]} d6 {[%emt 0:00:12]} 9. d4 {[%emt 0:00:09]} Bb6 {[%emt 0:00:10]} 10. a5 {[%emt 0:01:26]} Ba7 {[%emt 0:00:11]} 11. h3 {[%emt 0:00:11]} O-O {[%emt 0:00:40]} 12. Be3 {[%emt 0:00:08]} Ra8 {[%emt 0:00:18]} 13. Re1 {[%emt 0:00:38]} h6 {[%emt 0:01:02]} 14. Nbd2 {[%emt 0:00:25]} exd4 {[%emt 0:06:16]} 15. cxd4 {[%emt 0:00:42]} Nb4 {[%emt 0:00:26]} 16. e5 {[%emt 0:11:39]} Nfd5 {[%emt 0:01:06]} 17. Ne4 {[%emt 0:01:32]} Bf5 {[%emt 0:03:35]} 18. Bd2 {[%emt 0:06:04]} dxe5 {[%emt 0:11:39]} 19. Nxe5 {[%emt 0:19:27]} Bxd4 {[%emt 0:11:21]} 20. Bxb4 {[%emt 0:00:30]} Nxb4 {[%emt 0:00:13]} 21. Nxf7 {[%emt 0:00:16]} Rxf7 {[%emt 0:00:25]} 22. Bxf7+ {[%emt 0:00:19]} Kxf7 {[%emt 0:00:07]} 23. Qb3+ {[%emt 0:00:20]} Qd5 {[%emt 0:01:08]} 24. Qxd5+ {[%emt 0:01:47]} Nxd5 {[%emt 0:00:10]} 25. Rad1 {[%emt 0:00:20]} Bxe4 {[%emt 0:00:40]} 26. Rxd4 {[%emt 0:00:34]} Nf6 {[%emt 0:00:30]} 27. Rdxe4 {[%emt 0:01:07]} Nxe4 {[%emt 0:00:29]} 28. Rxe4 {[%emt 0:00:04]} Rd8 {[%emt 0:02:54]} 29. Kf1 {[%emt 0:11:56]} Rd2 {[%emt 0:11:05]} 30. Re2 {[%emt 0:01:09]} Rd1+ {[%emt 0:00:36]} 31. Re1 {[%emt 0:00:09]} Rxe1+ {[%emt 0:02:41]} 32. Kxe1 {[%emt 0:00:02]} Ke6 {[%emt 0:00:14]} 33. Ke2 {[%emt 0:01:16]} Kd5 {[%emt 0:00:29]} 34. Kd3 {[%emt 0:00:21]} c5 {[%emt 0:11:32]} 35. b3 {[%emt 0:15:50]} g5 {[%emt 0:01:13]} 36. g3 {[%emt 0:15:19]} Ke5 {[%emt 0:00:57]} 37. Ke3 {[%emt 0:00:16]} h5 {[%emt 0:03:52]} 38. Kd3 {[%emt 0:05:47]} g4 {[%emt 0:08:48]} 39. hxg4 {[%emt 0:02:00]} hxg4 {[%emt 0:00:27]} 40. Ke3 {[%emt 0:00:00]} b4 {[%emt 0:23:41]} 0-1

[Event "Sheikh Russel GM 2021"]
[Site "Dhaka"]
[Date "2021.10.21"]
[Round "3.21"]
[White "Vignesh N R"]
[Black "Arpita, Mukherjee"]
[Result "1/2-1/2"]
[ECO "B96"]
[WhiteElo "2453"]
[BlackElo "2229"]
[Annotator "ChessBase"]
[PlyCount "97"]
[EventDate "2021.10.19"]
[EventType "swiss"]
[EventCountry "BAN"]
[SourceTitle "playchess.com"]
[Source "ChessBase"]
[SourceQuality "1"]
[TimeControl "40/5400+30:1800+30"]

1. e4 {[%emt 0:00:04]} c5 {[%emt 0:04:27]} 2. Nf3 {[%emt 0:00:53]} d6 {[%emt 0:00:10]} 3. d4 {[%emt 0:00:04]} cxd4 {[%emt 0:00:15]} 4. Nxd4 {[%emt 0:00:02]} Nf6 {[%emt 0:00:09]} 5. Nc3 {[%emt 0:00:03]} a6 {[%emt 0:00:41]} 6. Bg5 {[%emt 0:00:07]} e6 {[%emt 0:00:51]} 7. f4 {[%emt 0:00:10]} h6 {[%emt 0:00:10]} 8. Bh4 {[%emt 0:00:05]} Qb6 {[%emt 0:00:09]} 9. a3 {[%emt 0:00:28]} Be7 {[%emt 0:00:35]} 10. Bf2 {[%emt 0:00:16]} Qc7 {[%emt 0:00:39]} 11. Qf3 {[%emt 0:00:26]} b5 {[%emt 0:03:32]} 12. O-O-O {[%emt 0:01:33]} Bb7 {[%emt 0:00:07]} 13. g4 {[%emt 0:02:47]} Nbd7 {[%emt 0:04:56]} 14. h4 {[%emt 0:00:20]} Nc5 {[%emt 0:10:09]} 15. Bd3 {[%emt 0:00:06]} h5 {[%emt 0:01:04]} 16. g5 {[%emt 0:00:11]} Ng4 {[%emt 0:02:39]} 17. Rhg1 {[%emt 0:00:14]} Nxf2 {[%emt 0:04:34]} 18. Qxf2 {[%emt 0:00:08]} O-O-O {[%emt 0:01:58]} 19. Rg3 {[%emt 0:13:41]} Qb6 {[%emt 0:05:39]} 20. b4 {[%emt 0:10:31]} Nxd3+ {[%emt 0:05:55]} 21. Rgxd3 {[%emt 0:01:01]} Kb8 {[%emt 0:01:06]} 22. Qd2 {[%emt 0:04:13]} Rc8 {[%emt 0:01:08]} 23. f5 {[%emt 0:07:02]} d5 {[%emt 0:26:23]} 24. exd5 {[%emt 0:04:56]} exd5 {[%emt 0:00:19]} 25. Nb3 {[%emt 0:00:28]} Rhd8 {[%emt 0:03:04]} 26. Nxd5 {[%emt 0:10:21]} Bxd5 {[%emt 0:05:33]} 27. Rxd5 {[%emt 0:00:03]} Rxd5 {[%emt 0:00:19]} 28. Qxd5 {[%emt 0:00:02]} Qe3+ {[%emt 0:00:39]} 29. Kb1 {[%emt 0:02:14]} Rd8 {[%emt 0:02:52]} 30. Qh1 {[%emt 0:00:06]} Rxd1+ {[%emt 0:01:04]} 31. Qxd1 {[%emt 0:00:02]} Kc7 {[%emt 0:00:27]} 32. Qd5 {[%emt 0:02:51]} Qe1+ {[%emt 0:01:13]} 33. Kb2 {[%emt 0:00:22]} Qxh4 {[%emt 0:08:04]} 34. Nc5 {[%emt 0:05:51]} Bxc5 {[%emt 0:01:21]} 35. bxc5 {[%emt 0:08:15]} Qxg5 {[%emt 0:00:50]} 36. Qd6+ {[%emt 0:00:03]} Kc8 {[%emt 0:00:12]} 37. Qxa6+ {[%emt 0:00:26]} Kc7 {[%emt 0:01:23]} 38. Qd6+ {[%emt 0:04:36]} Kc8 {[%emt 0:00:07]} 39. Qf8+ {[%emt 0:04:23]} Kc7 {[%emt 0:00:15]} 40. Qxf7+ {[%emt 0:00:00]} Kc6 {[%emt 0:00:00]} 41. Qa7 {[%emt 0:03:56]} Qf6+ {[%emt 0:06:40]} 42. c3 {[%emt 0:02:21]} Qd8 {[%emt 0:01:01]} 43. Kc2 {[%emt 0:01:11]} Qc7 {[%emt 0:06:32]} 44. Qa8+ {[%emt 0:10:11]} Kxc5 {[%emt 0:00:33]} 45. Qe8 {[%emt 0:00:12]} Qh2+ {[%emt 0:03:48]} 46. Kb3 {[%emt 0:00:02]} Qh1 {[%emt 0:04:11]} 47. Qe3+ {[%emt 0:01:36]} Kc6 {[%emt 0:00:40]} 48. Qe6+ {[%emt 0:01:35]} Kc5 {[%emt 0:01:19]} 49. Qe7+ {[%emt 0:03:02]} 1/2-1/2

[Event "Sheikh Russel GM 2021"]
[Site "Dhaka"]
[Date "2021.10.21"]
[Round "3.22"]
[White "Mohammad Nubairshah Shaikh"]
[Black "Chatterjee, Debaraj"]
[Result "1/2-1/2"]
[ECO "E60"]
[WhiteElo "2440"]
[BlackElo "2226"]
[Annotator "ChessBase"]
[PlyCount "104"]
[EventDate "2021.10.19"]
[EventType "swiss"]
[EventCountry "BAN"]
[SourceTitle "playchess.com"]
[Source "ChessBase"]
[SourceQuality "1"]
[TimeControl "40/5400+30:1800+30"]

1. c4 {[%emt 0:00:04]} Nf6 {[%emt 0:02:37]} 2. Nf3 {[%emt 0:00:04]} g6 {[%emt 0:00:32]} 3. b3 {[%emt 0:00:02]} Bg7 {[%emt 0:00:15]} 4. Bb2 {[%emt 0:00:02]} O-O {[%emt 0:00:15]} 5. g3 {[%emt 0:00:04]} d6 {[%emt 0:00:25]} 6. d4 {[%emt 0:00:05]} Nbd7 {[%emt 0:01:31]} 7. Bg2 {[%emt 0:00:03]} c6 {[%emt 0:00:38]} 8. O-O {[%emt 0:00:05]} Re8 {[%emt 0:00:24]} 9. Re1 {[%emt 0:04:21]} e5 {[%emt 0:08:04]} 10. dxe5 {[%emt 0:01:51]} dxe5 {[%emt 0:00:18]} 11. Nfd2 {[%emt 0:16:47]} e4 {[%emt 0:09:33]} 12. Nf1 {[%emt 0:00:09]} Qa5 {[%emt 0:08:10]} 13. Nbd2 {[%emt 0:06:55]} Qh5 {[%emt 0:21:33]} 14. e3 {[%emt 0:00:43]} Qf5 {[%emt 0:11:06]} 15. f3 {[%emt 0:10:47]} exf3 {[%emt 0:02:31]} 16. Nxf3 {[%emt 0:00:03]} Nc5 {[%emt 0:02:07]} 17. Nd4 {[%emt 0:01:50]} Qg5 {[%emt 0:01:57]} 18. Qc2 {[%emt 0:01:54]} Nce4 {[%emt 0:03:13]} 19. Nd2 {[%emt 0:03:16]} Nxd2 {[%emt 0:04:55]} 20. Qxd2 {[%emt 0:00:03]} Ne4 {[%emt 0:02:48]} 21. Qc2 {[%emt 0:02:09]} Qe7 {[%emt 0:00:56]} 22. Ne2 {[%emt 0:10:58]} Bxb2 {[%emt 0:04:05]} 23. Qxb2 {[%emt 0:00:33]} Bg4 {[%emt 0:02:59]} 24. Nd4 {[%emt 0:19:48]} Rad8 {[%emt 0:00:32]} 25. b4 {[%emt 0:00:18]} h5 {[%emt 0:01:05]} 26. Qc2 {[%emt 0:02:13]} h4 {[%emt 0:02:49]} 27. gxh4 {[%emt 0:01:50]} Bh5 {[%emt 0:00:33]} 28. Bxe4 {[%emt 0:07:48]} Qxe4 {[%emt 0:00:04]} 29. Qf2 {[%emt 0:00:27]} Kg7 {[%emt 0:02:06]} 30. Rac1 {[%emt 0:01:47]} Rd6 {[%emt 0:01:09]} 31. Qg3 {[%emt 0:02:09]} Rf6 {[%emt 0:00:52]} 32. Rc2 {[%emt 0:01:51]} Qd3 {[%emt 0:02:31]} 33. Rf2 {[%emt 0:02:21]} Rxf2 {[%emt 0:00:09]} 34. Qxf2 {[%emt 0:00:38]} Re4 {[%emt 0:02:52]} 35. h3 {[%emt 0:00:20]} Qxc4 {[%emt 0:00:16]} 36. Rf1 {[%emt 0:00:01]} Qd5 {[%emt 0:00:48]} 37. a3 {[%emt 0:02:21]} f5 {[%emt 0:01:04]} 38. Qg3 {[%emt 0:00:18]} Kf7 {[%emt 0:01:08]} 39. Qg5 {[%emt 0:01:53]} Re5 {[%emt 0:00:26]} 40. Qh6 {[%emt 0:00:00]} Kg8 {[%emt 0:00:00]} 41. Qg5 {[%emt 0:08:07]} Qe4 {[%emt 0:06:54]} 42. Kf2 {[%emt 0:00:20]} Rd5 {[%emt 0:03:53]} 43. Kg3 {[%emt 0:02:49]} Re5 {[%emt 0:05:55]} 44. Re1 {[%emt 0:00:49]} Re8 {[%emt 0:02:59]} 45. Qf6 {[%emt 0:03:28]} Re7 {[%emt 0:06:00]} 46. Qd6 {[%emt 0:04:01]} Kf7 {[%emt 0:00:38]} 47. Qf4 {[%emt 0:08:03]} Qd3 {[%emt 0:01:21]} 48. Kf2 {[%emt 0:03:27]} Qd2+ {[%emt 0:01:12]} 49. Kf1 {[%emt 0:00:01]} Qd3+ {[%emt 0:00:52]} 50. Kf2 {[%emt 0:00:03]} Qd2+ {[%emt 0:03:49]} 51. Kf1 {[%emt 0:00:02]} Qc3 {[%emt 0:01:20]} 52. Kf2 {[%emt 0:01:53]} Qd2+ {[%emt 0:02:21]} 1/2-1/2

[Event "Sheikh Russel GM 2021"]
[Site "Dhaka"]
[Date "2021.10.21"]
[Round "3.23"]
[White "Ahmed, Sheikh Nasir"]
[Black "Haznedaroglu, Kivanc"]
[Result "0-1"]
[ECO "A25"]
[WhiteElo "2228"]
[BlackElo "2438"]
[Annotator "ChessBase"]
[PlyCount "50"]
[EventDate "2021.10.19"]
[EventType "swiss"]
[EventCountry "BAN"]
[SourceTitle "playchess.com"]
[Source "ChessBase"]
[SourceQuality "1"]
[TimeControl "40/5400+30:1800+30"]

1. c4 {[%emt 0:01:11]} e5 {[%emt 0:00:07]} 2. g3 {[%emt 0:00:10]} Nc6 {[%emt 0:00:08]} 3. Bg2 {[%emt 0:00:13]} Bc5 {[%emt 0:00:06]} 4. Nc3 {[%emt 0:01:27]} d6 {[%emt 0:00:19]} 5. e3 {[%emt 0:00:38]} a6 {[%emt 0:00:42]} 6. Nge2 {[%emt 0:01:04]} h5 {[%emt 0:00:27]} 7. d4 {[%emt 0:05:03]} Ba7 {[%emt 0:00:14]} 8. h4 {[%emt 0:02:22]} Bg4 {[%emt 0:04:55]} 9. Qd2 {[%emt 0:04:26]} exd4 {[%emt 0:05:54]} 10. exd4 {[%emt 0:03:44]} Nge7 {[%emt 0:02:16]} 11. b3 {[%emt 0:03:47]} O-O {[%emt 0:08:43]} 12. Bb2 {[%emt 0:06:31]} Re8 {[%emt 0:01:30]} 13. O-O-O {[%emt 0:04:24]} b5 {[%emt 0:21:11]} 14. cxb5 {[%emt 0:07:18]} axb5 {[%emt 0:00:18]} 15. Nxb5 {[%emt 0:00:21]} Bb6 {[%emt 0:00:10]} 16. Nbc3 {[%emt 0:06:01]} Ba5 {[%emt 0:04:16]} 17. Rde1 {[%emt 0:12:39]} Bb4 {[%emt 0:03:21]} 18. f3 {[%emt 0:13:30]} Bf5 {[%emt 0:01:12]} 19. g4 {[%emt 0:01:37]} Bh7 {[%emt 0:00:19]} 20. a4 {[%emt 0:08:36]} Na5 {[%emt 0:01:52]} 21. Qd1 {[%emt 0:00:03]} Rb8 {[%emt 0:00:11]} 22. Kd2 {[%emt 0:06:22]} Nd5 {[%emt 0:05:02]} 23. Nc1 {[%emt 0:01:34]} Qf6 {[%emt 0:00:06]} 24. Re4 {[%emt 0:02:13]} Bxe4 {[%emt 0:00:15]} 25. fxe4 {[%emt 0:00:15]} Qxd4+ {[%emt 0:00:06]} 0-1

[Event "Sheikh Russel GM 2021"]
[Site "Dhaka"]
[Date "2021.10.21"]
[Round "3.24"]
[White "Mirzoev, Azer"]
[Black "Zia, Tahsin Tajwar"]
[Result "1/2-1/2"]
[ECO "D31"]
[WhiteElo "2438"]
[BlackElo "2212"]
[Annotator "ChessBase"]
[PlyCount "86"]
[EventDate "2021.10.19"]
[EventType "swiss"]
[EventCountry "BAN"]
[SourceTitle "playchess.com"]
[Source "ChessBase"]
[SourceQuality "1"]
[TimeControl "40/5400+30:1800+30"]

1. d4 {[%emt 0:01:22]} d5 {[%emt 0:00:11]} 2. c4 {[%emt 0:00:04]} e6 {[%emt 0:00:04]} 3. Nc3 {[%emt 0:00:04]} a6 {[%emt 0:00:19]} 4. cxd5 {[%emt 0:01:18]} exd5 {[%emt 0:00:07]} 5. Nf3 {[%emt 0:00:06]} c6 {[%emt 0:00:10]} 6. Qb3 {[%emt 0:00:54]} Nf6 {[%emt 0:00:18]} 7. Bg5 {[%emt 0:00:13]} h6 {[%emt 0:03:26]} 8. Bh4 {[%emt 0:00:08]} Be7 {[%emt 0:00:36]} 9. e3 {[%emt 0:00:05]} O-O {[%emt 0:00:41]} 10. Bd3 {[%emt 0:03:10]} Re8 {[%emt 0:00:46]} 11. O-O-O {[%emt 0:01:10]} a5 {[%emt 0:01:37]} 12. Qc2 {[%emt 0:00:52]} Na6 {[%emt 0:01:55]} 13. a3 {[%emt 0:06:09]} b5 {[%emt 0:16:05]} 14. Ne5 {[%emt 0:00:12]} Bb7 {[%emt 0:00:58]} 15. Ne2 {[%emt 0:06:49]} a4 {[%emt 0:09:16]} 16. Kb1 {[%emt 0:00:53]} b4 {[%emt 0:11:41]} 17. Nxc6 {[%emt 0:02:25]} Bxc6 {[%emt 0:03:38]} 18. Qxc6 {[%emt 0:00:40]} bxa3 {[%emt 0:00:13]} 19. Bxa6 {[%emt 0:02:26]} Qb8 {[%emt 0:00:13]} 20. Qb5 {[%emt 0:20:48]} Rxa6 {[%emt 0:01:13]} 21. Qxb8 {[%emt 0:17:14]} Rxb8 {[%emt 0:00:06]} 22. Nc3 {[%emt 0:00:15]} Bb4 {[%emt 0:17:59]} 23. Na2 {[%emt 0:01:04]} axb2 {[%emt 0:00:37]} 24. f3 {[%emt 0:01:30]} a3 {[%emt 0:06:24]} 25. Rd3 {[%emt 0:00:31]} Bf8 {[%emt 0:01:03]} 26. Rhd1 {[%emt 0:00:19]} Rc8 {[%emt 0:02:38]} 27. Rc3 {[%emt 0:02:04]} Rac6 {[%emt 0:02:33]} 28. Rxc6 {[%emt 0:00:10]} Rxc6 {[%emt 0:00:01]} 29. Rd3 {[%emt 0:00:34]} Nd7 {[%emt 0:01:05]} 30. Bd8 {[%emt 0:07:26]} Rc8 {[%emt 0:05:39]} 31. Ba5 {[%emt 0:00:19]} Ra8 {[%emt 0:00:14]} 32. Bc7 {[%emt 0:01:48]} Nf6 {[%emt 0:04:36]} 33. Rb3 {[%emt 0:09:32]} Ne8 {[%emt 0:02:45]} 34. Bg3 {[%emt 0:00:07]} Ra6 {[%emt 0:01:42]} 35. Nc3 {[%emt 0:01:05]} Bd6 {[%emt 0:02:09]} 36. Ka2 {[%emt 0:01:11]} Bxg3 {[%emt 0:01:14]} 37. hxg3 {[%emt 0:00:10]} Nd6 {[%emt 0:00:35]} 38. Rxa3 {[%emt 0:03:56]} Rxa3+ {[%emt 0:00:11]} 39. Kxa3 {[%emt 0:00:03]} Nc4+ {[%emt 0:00:05]} 40. Ka2 {[%emt 0:00:00]} Nxe3 {[%emt 0:00:00]} 41. Kxb2 {[%emt 0:00:30]} Kf8 {[%emt 0:18:08]} 42. Kc1 {[%emt 0:01:03]} Nf5 {[%emt 0:00:32]} 43. Nxd5 {[%emt 0:00:33]} Nxd4 {[%emt 0:00:06]} 1/2-1/2

[Event "Sheikh Russel GM 2021"]
[Site "Dhaka"]
[Date "2021.10.22"]
[Round "4.6"]
[White "Iskandarov, Misratdin"]
[Black "Sammed Jaykumar, Shete"]
[Result "1-0"]
[ECO "B11"]
[WhiteElo "2552"]
[BlackElo "2413"]
[Annotator "RC"]
[PlyCount "107"]
[EventDate "2021.10.19"]
[EventType "swiss"]
[EventCountry "BAN"]
[SourceTitle "playchess.com"]
[Source "ChessBase"]
[SourceQuality "1"]
[TimeControl "40/5400+30:1800+30"]

1. e4 {[%emt 0:00:04]} c6 {[%emt 0:00:47]} 2. Nc3 {[%emt 0:00:41]} d5 {[%emt 0:00:25]} 3. Nf3 {[%emt 0:00:06]} dxe4 {[%emt 0:00:16]} 4. Nxe4 {[%emt 0:00:06]} Nf6 {[%emt 0:00:06]} 5. Qe2 {[%emt 0:00:05]} Nxe4 {[%emt 0:00:10]} 6. Qxe4 {[%emt 0:00:05]} Nd7 {[%emt 0:00:11]} 7. Bc4 {[%emt 0:00:06]} Nf6 {[%emt 0:00:06]} 8. Ne5 {[%emt 0:00:04]} e6 {[%emt 0:00:07]} 9. Qe2 {[%emt 0:00:03]} b5 {[%emt 0:00:30]} 10. Bb3 {[%emt 0:01:28]} Qc7 {[%emt 0:00:28]} 11. d4 {[%emt 0:00:06]} Bd6 {[%emt 0:00:18]} 12. a4 {[%emt 0:00:22]} O-O {[%emt 0:04:41]} 13. O-O {[%emt 0:06:45]} a5 {[%emt 0:17:03]} 14. Re1 {[%emt 0:00:47]} Ba6 {[%emt 0:01:38]} 15. Qf3 {[%emt 0:08:42]} c5 {[%emt 0:02:55]} 16. axb5 {[%emt 0:06:04]} Bxb5 {[%emt 0:11:15]} 17. Bg5 {[%emt 0:09:09]} Nd7 {[%emt 0:09:02]} 18. Nxd7 {[%emt 0:25:26]} Bxd7 {[%emt 0:00:25]} 19. dxc5 {[%emt 0:00:21]} Bxh2+ {[%emt 0:10:25]} 20. Kh1 {[%emt 0:00:32]} a4 {[%emt 0:15:46]} 21. Ba2 {[%emt 0:05:14]} Be5 {[%emt 0:13:03]} 22. Rad1 {[%emt 0:07:08]} Bc6 {[%emt 0:03:30]} 23. Qg4 {[%emt 0:16:16]} Bxb2 {[%emt 0:00:42]} 24. Re3 {[%emt 0:00:47]} Bd5 {[%emt 0:02:17]} 25. c4 {[%emt 0:03:14]} Bb7 {[%emt 0:02:10]} 26. Rh3 {[%emt 0:07:09]} g6 {[%emt 0:00:48]} 27. Qh4 {[%emt 0:01:32]} f6 {[%emt 0:02:30]} 28. Bf4 {[%emt 0:00:04]} Qf7 {[%emt 0:01:36]} 29. c6 {[%emt 0:01:47]} Bxc6 {[%emt 0:00:34]} 30. c5 {[%emt 0:00:14]} Ra7 {[%emt 0:00:26]} 31. Bh6 {[%emt 0:00:47]} Re8 {[%emt 0:00:38]} 32. Rhd3 {[%emt 0:00:07]} Rae7 {[%emt 0:01:00]} 33. Rd6 {[%emt 0:00:10]} Bb7 {[%emt 0:00:31]} 34. c6 {[%emt 0:00:22]} Bc8 {[%emt 0:00:08]} 35. Be3 {[%emt 0:01:06]} a3 {[%emt 0:00:24]} 36. Bc5 {[%emt 0:00:17]} g5 {[%emt 0:00:18]} 37. Qh3 {[%emt 0:00:24]} Kg7 {[%emt 0:01:07]} 38. Bxa3 {[%emt 0:00:39]} Bxa3 {[%emt 0:00:27]} 39. Qxa3 {[%emt 0:00:04]} Ra7 {[%emt 0:00:41]} 40. Qb2 {[%emt 0:00:00]} Rae7 {[%emt 0:00:00]} 41. Qb6 {[%emt 0:01:54]} Qh5+ {[%emt 0:09:04]} 42. Kg1 {[%emt 0:00:10]} Qe2 {[%emt 0:05:10]} 43. Bb3 {[%emt 0:02:52]} Qe5 {[%emt 0:06:15]} 44. Ba4 {[%emt 0:02:15]} Rf8 {[%emt 0:01:03]} 45. Bb5 {[%emt 0:02:38]} Rff7 {[%emt 0:01:55]} 46. Qb8 {[%emt 0:09:14]} Rc7 {[%emt 0:00:32]} 47. Rd8 {[%emt 0:02:10]} Qc5 {[%emt 0:01:13]} 48. Rxc8 {[%emt 0:01:30]} Rxc8 {[%emt 0:00:51]} 49. Qxc8 {[%emt 0:00:06]} Qxb5 {[%emt 0:00:03]} 50. Qxe6 {[%emt 0:00:57]} Qc5 {[%emt 0:01:03]} 51. g3 {[%emt 0:01:50]} Qb6 {[%emt 0:04:03]} 52. Rd7 {[%emt 0:03:22]} Rxd7 {[%emt 0:00:04]} 53. Qxd7+ {[%emt 0:00:06]} Kg6 {[%emt 0:00:19]} 54. Qb7 {[%emt 0:00:13]} 1-0